fUST/lending_fUST_20240916
["ID","MTS","AMOUNT","RATE_DAILY","PERIOD"]
[338265078,1726459839405,-23185.4608519,0.00021887,3]
[338265079,1726459839414,-41863.507683,0.00021887,3]
[338265080,1726459839424,-173.209086,0.00021887,2]
[338265081,1726459839433,-173.209086,0.00021887,2]
[338265082,1726459839446,-173.209086,0.00021887,2]
[338265083,1726459839455,-173.209086,0.00021887,2]
[338265084,1726459839464,-151.0,0.00021887,2]
[338265085,1726459839473,-168.033112,0.00021887,2]
[338265086,1726459839482,-372.785075,0.00021887,2]
[338265087,1726459839492,-372.785075,0.00021887,2]
[338265088,1726459839501,-151.0,0.00021887,2]
[338265089,1726459839510,-151.0,0.00021887,2]
[338265090,1726459839521,-151.0,0.00021887,2]
[338265091,1726459839530,-151.0,0.00021887,2]
[338265092,1726459839540,-231.125015,0.00021887,2]
[338265093,1726459839549,-231.125015,0.00021887,2]
[338265094,1726459839558,-231.125015,0.00021887,2]
[338265095,1726459839567,-231.125015,0.00021887,2]
[338265096,1726459839576,-151.0,0.00021887,2]
[338265097,1726459839585,-151.0,0.00021887,2]
[338265098,1726459839594,-151.0,0.00021887,2]
[338265099,1726459839604,-151.0,0.00021887,2]
[338265100,1726459839613,-151.0,0.00021887,2]
[338265101,1726459839623,-151.0,0.00021887,2]
[338265102,1726459839633,-151.0,0.00021887,2]
[338265103,1726459839642,-161.106735,0.00021887,2]
[338265104,1726459839651,-151.0,0.00021887,2]
[338265105,1726459839661,-151.0,0.00021887,2]
[338265107,1726459839671,-151.0,0.00021887,2]
[338265109,1726459839681,-151.0,0.00021887,2]
[338265111,1726459839690,-151.0,0.00021887,2]
[338265113,1726459839699,-151.0,0.00021887,2]
[338265115,1726459839709,-308.11235,0.00021887,2]
[338265116,1726459839718,-151.0,0.00021887,2]
[338265117,1726459839727,-308.11235,0.00021887,2]
[338265118,1726459839926,-151.0,0.00021895,2]
[338265119,1726459839936,-151.0,0.00021895,2]
[338265120,1726459839946,-151.0,0.00021895,2]
[338265121,1726459839956,-161.536819,0.00021895,2]
[338265122,1726459839966,-275.942395,0.00021896,2]
[338265123,1726459839976,-275.942395,0.00021896,2]
[338265124,1726459839986,-173.209086,0.00021896,2]
[338265125,1726459839996,-173.209086,0.00021896,2]
[338265126,1726459840006,-372.785075,0.00021896,2]
[338265127,1726459840015,-151.0,0.00021896,2]
[338265128,1726459840026,-151.0,0.00021896,2]
[338265129,1726459840035,-231.125015,0.00021896,2]
[338265130,1726459840045,-231.125015,0.00021896,2]
[338265131,1726459840055,-151.0,0.00021896,2]
[338265132,1726459840064,-151.0,0.00021896,2]
[338265133,1726459840075,-595.86508479,0.00021896,5]
[338265134,1726459840084,-186.01304692,0.00021897,7]
[338265135,1726459840093,-983.78791113,0.00021897,3]
[338265150,1726460835157,-300.0,0.00019874,2]
[338265151,1726460835179,-134.95196069,0.00019874,2]
[338265152,1726460850306,-151.74528226,0.00019874,2]
[338265157,1726460947117,-2969.5685324,0.000188,2]
[338265158,1726460947140,-300.0,0.00019874,2]
[338265159,1726460947161,-300.0,0.00019874,2]
[338265160,1726460947184,-6905.27490024,0.00019875,2]
[338265205,1726461032232,-292.34,0.00019875,2]
[338265206,1726461032244,-2525.95897892,0.00019875,2]
[338265219,1726461038173,-5688.8473618,0.00019875,2]
[338265220,1726461038187,-333.04240939,0.00019875,2]
[338265221,1726461038200,-1775.55052495,0.00019875,2]
[338265222,1726461038212,-2857.09537301,0.00019875,2]
[338265223,1726461038223,-738.46970076,0.00019875,2]
[338265224,1726461038268,-16.86058692,0.00019875,2]
[338265225,1726461038291,-3766.56016401,0.00019875,2]
[338265226,1726461038300,-162.8291668,0.00020608,2]
[338265227,1726461038310,-167.127282,0.00020725,2]
[338265228,1726461038320,-167.127282,0.00020815,2]
[338265229,1726461038329,-167.127282,0.00020905,2]
[338265230,1726461038339,-500.0,0.00020917,7]
[338265231,1726461038348,-500.0,0.00020917,7]
[338265232,1726461038357,-500.0,0.00020917,7]
[338265233,1726461038366,-604.3501814,0.00020985,2]
[338265234,1726461038375,-167.127282,0.00020995,2]
[338265235,1726461038384,-1991.33,0.00021,3]
[338265236,1726461038393,-167.127282,0.00021085,2]
[338265237,1726461038402,-167.127282,0.00021175,2]
[338265238,1726461038412,-152.086467,0.0002118,2]
[338265239,1726461038421,-160.97236498,0.00021214,5]
[338265240,1726461038431,-167.127282,0.00021265,2]
[338265241,1726461038441,-604.70691513,0.00021303,2]
[338265242,1726461038450,-167.127282,0.00021355,2]
[338265243,1726461038459,-604.3501814,0.00021401,2]
[338265244,1726461038468,-167.127282,0.00021445,2]
[338265245,1726461038477,-167.127282,0.00021535,2]
[338265246,1726461038486,-167.127282,0.00021625,2]
[338265247,1726461038495,-420.0,0.00021644,2]
[338265248,1726461038504,-167.127282,0.00021715,2]
[338265249,1726461038513,-301.33975628,0.00021787,2]
[338265250,1726461038522,-301.33975628,0.00021792,2]
[338265251,1726461038531,-301.33975628,0.00021797,2]
[338265252,1726461038540,-301.33975628,0.00021802,2]
[338265253,1726461038549,-167.127282,0.00021805,2]
[338265254,1726461038559,-301.33975628,0.00021807,2]
[338265255,1726461038567,-665.81852297,0.00021817,2]
[338265256,1726461038577,-604.3501814,0.00021818,2]
[338265257,1726461038586,-524.0,0.00021822,2]
[338265258,1726461038596,-164.0,0.00021822,2]
[338265259,1726461038605,-158.05,0.00021876,3]
[338265260,1726461038614,-474.17,0.00021876,3]
[338265261,1726461038622,-500.0,0.00021886,2]
[338265262,1726461038631,-500.0,0.00021886,2]
[338265263,1726461038641,-500.0,0.00021886,2]
[338265264,1726461038841,-500.0,0.00021886,2]
[338265265,1726461038870,-500.0,0.00021886,2]
[338265266,1726461038880,-370.43778964,0.00021886,2]
[338265267,1726461038889,-500.0,0.00021886,2]
[338265268,1726461038898,-500.0,0.00021886,2]
[338265269,1726461038907,-390.10075424,0.00021886,2]
[338265270,1726461038916,-500.0,0.00021886,2]
[338265271,1726461038925,-448.33571426,0.00021886,2]
[338265272,1726461038934,-500.0,0.00021886,2]
[338265273,1726461038943,-500.0,0.00021886,2]
[338265274,1726461038952,-500.0,0.00021886,2]
[338265275,1726461038961,-500.0,0.00021886,2]
[338265276,1726461038970,-500.0,0.00021886,2]
[338265277,1726461038981,-500.0,0.00021886,2]
[338265278,1726461038990,-500.0,0.00021886,2]
[338265279,1726461038999,-500.0,0.00021886,2]
[338265280,1726461039009,-500.0,0.00021886,2]
[338265281,1726461039018,-500.0,0.00021886,2]
[338265282,1726461039027,-500.0,0.00021886,2]
[338265283,1726461039036,-500.0,0.00021886,2]
[338265284,1726461039045,-500.0,0.00021886,2]
[338265285,1726461039056,-500.0,0.00021886,2]
[338265286,1726461039066,-500.0,0.00021886,2]
[338265287,1726461039075,-257.60110894,0.00021886,2]
[338265288,1726461039088,-242.39889106,0.00021886,2]
[338265289,1726461039096,-60.60110894,0.00021886,2]
[338265291,1726461039108,-439.39889106,0.00021886,2]
[338265293,1726461039117,-500.0,0.00021886,2]
[338265295,1726461039126,-500.0,0.00021886,2]
[338265296,1726461039136,-500.0,0.00021886,2]
[338265298,1726461039145,-500.0,0.00021886,2]
[338265300,1726461039154,-500.0,0.00021886,2]
[338265302,1726461039164,-500.0,0.00021886,2]
[338265304,1726461039174,-500.0,0.00021886,2]
[338265306,1726461039183,-500.0,0.00021886,2]
[338265308,1726461039193,-500.0,0.00021886,2]
[338265311,1726461039203,-500.0,0.00021886,2]
[338265313,1726461039213,-500.0,0.00021886,2]
[338265315,1726461039222,-500.0,0.00021886,2]
[338265317,1726461039232,-500.0,0.00021886,2]
[338265319,1726461039241,-500.0,0.00021886,2]
[338265321,1726461039251,-500.0,0.00021886,2]
[338265323,1726461039260,-500.0,0.00021886,2]
[338265325,1726461039270,-500.0,0.00021886,2]
[338265327,1726461039279,-500.0,0.00021886,2]
[338265329,1726461039288,-500.0,0.00021886,2]
[338265331,1726461039298,-500.0,0.00021886,2]
[338265333,1726461039308,-500.0,0.00021886,2]
[338265335,1726461039317,-500.0,0.00021886,2]
[338265336,1726461039327,-500.0,0.00021886,2]
[338265337,1726461039337,-500.0,0.00021886,2]
[338265338,1726461039346,-500.0,0.00021886,2]
[338265339,1726461039355,-500.0,0.00021886,2]
[338265340,1726461039364,-500.0,0.00021886,2]
[338265341,1726461039373,-500.0,0.00021886,2]
[338265342,1726461039383,-500.0,0.00021886,2]
[338265343,1726461039392,-500.0,0.00021886,2]
[338265344,1726461039401,-500.0,0.00021886,2]
[338265345,1726461039411,-500.0,0.00021886,2]
[338265346,1726461039420,-582.70525057,0.00021886,2]
[338265347,1726461039429,-500.0,0.00021886,2]
[338265348,1726461039438,-500.0,0.00021886,2]
[338265349,1726461039448,-500.0,0.00021886,2]
[338265350,1726461039457,-500.0,0.00021886,2]
[338265351,1726461039466,-500.0,0.00021886,2]
[338265352,1726461039475,-500.0,0.00021886,2]
[338265353,1726461039484,-500.0,0.00021886,2]
[338265355,1726461039493,-500.0,0.00021886,2]
[338265357,1726461039502,-500.0,0.00021886,2]
[338265359,1726461039512,-500.0,0.00021886,2]
[338265361,1726461039521,-500.0,0.00021886,2]
[338265363,1726461039530,-500.0,0.00021886,2]
[338265365,1726461039540,-500.0,0.00021886,2]
[338265367,1726461039549,-500.0,0.00021886,2]
[338265369,1726461039558,-500.0,0.00021886,2]
[338265371,1726461039567,-500.0,0.00021886,2]
[338265374,1726461039577,-500.0,0.00021886,2]
[338265376,1726461039587,-500.0,0.00021886,2]
[338265378,1726461039596,-500.0,0.00021886,2]
[338265380,1726461039606,-500.0,0.00021886,2]
[338265382,1726461039616,-500.0,0.00021886,2]
[338265384,1726461039626,-500.0,0.00021886,2]
[338265386,1726461039635,-500.0,0.00021886,2]
[338265388,1726461039644,-650.0,0.00021886,2]
[338265390,1726461039653,-11802.8791366,0.00021886,3]
[338265392,1726461039662,-16745.4030733,0.00021886,3]
[338265394,1726461039671,-35408.6374099,0.00021887,3]
[338265396,1726461039680,-50236.2092198,0.00021887,3]
[338265398,1726461039689,-1196.42843957,0.00021895,2]
[338265401,1726461039699,-35408.6374099,0.00021897,3]
[338265404,1726461039708,-50236.2092198,0.00021897,3]
[338265407,1726461039718,-150.112233,0.000219,2]
[338265409,1726461039727,-150.112233,0.000219,4]
[338265411,1726461039737,-150.112233,0.000219,3]
[338265413,1726461039746,-150.112233,0.000219,2]
[338265415,1726461039755,-500.0,0.00021906,2]
[338265417,1726461039764,-212.34305787,0.00021906,2]
[338265419,1726461039773,-305.28988195,0.00021906,2]
[338265421,1726461039783,-20426.23340291,0.00021907,5]
[338265423,1726461039792,-595.86508479,0.00021907,5]
[338265425,1726461039801,-186.01304692,0.00021907,7]
[338265427,1726461039811,-62506.54877898,0.00021907,3]
[338265430,1726461039823,-10874.69740582,0.00021907,3]
[338265432,1726461039840,-405.56735736,0.00021907,3]
[338265434,1726461039852,-290.21825122,0.00021907,3]
[338265460,1726461040087,-55754.63870962,0.00021907,3]
[338265462,1726461040098,-7376.5136868,0.00021907,3]
[338265878,1726462050142,-246.03542973,0.00019454,2]
[338265879,1726462148177,-300.0,0.00019454,2]
[338265880,1726462148199,-300.0,0.00019454,2]
[338265881,1726462148220,-3994.84343264,0.00019455,2]
[338265882,1726462168119,-175.37678903,0.00019455,2]
[338265914,1726462232209,-240.916637,0.00019302,2]
[338265915,1726462232218,-21.37336304,0.00019355,2]
[338265916,1726462232229,-219.54327396,0.00019355,2]
[338265917,1726462232238,-240.916637,0.00019408,2]
[338265918,1726462232247,-2.0040598,0.00019455,2]
[338265919,1726462232266,-921.11933245,0.00019455,2]
[338265920,1726462232277,-1669.69707867,0.00019455,2]
[338265921,1726462232288,-1628.1995202,0.00019455,2]
[338265924,1726462238310,-310.410008,0.00019455,2]
[338265930,1726462238366,-1448.89682121,0.00019455,2]
[338265932,1726462238375,-240.916637,0.00019461,2]
[338265934,1726462238385,-240.916637,0.00019514,2]
[338265936,1726462238394,-240.916637,0.00019567,2]
[338265938,1726462238404,-558.298936,0.00019587,2]
[338265940,1726462238414,-240.916637,0.0001962,2]
[338265942,1726462238423,-240.916637,0.00019673,2]
[338265944,1726462238433,-240.916637,0.00019726,2]
[338265946,1726462238442,-240.916637,0.00019779,2]
[338265948,1726462238451,-240.916637,0.00019831,2]
[338265950,1726462238461,-240.916637,0.00019884,2]
[338265951,1726462238470,-240.916637,0.00019937,2]
[338265952,1726462238479,-240.916637,0.0001999,2]
[338265953,1726462238489,-300.0,0.00019999,2]
[338265954,1726462238499,-300.0,0.00019999,2]
[338265955,1726462238509,-1813.0,0.0002,2]
[338265956,1726462238518,-240.916637,0.00020043,2]
[338265957,1726462238528,-10150.547042,0.0002014,2]
[338265958,1726462238541,-24900.0,0.00020217,2]
[338265959,1726462238551,-316.1,0.00020267,3]
[338265960,1726462238560,-40685.962651,0.00020277,3]
[338265961,1726462238570,-35756.7749789,0.00020277,3]
[338265962,1726462238579,-160.92619047,0.00020285,2]
[338265963,1726462238589,-500.0,0.00020285,2]
[338265964,1726462238599,-500.0,0.00020285,2]
[338265965,1726462238610,-500.0,0.00020285,2]
[338265966,1726462238621,-500.0,0.00020285,2]
[338265967,1726462238630,-500.0,0.00020285,2]
[338265968,1726462238640,-500.0,0.00020285,2]
[338265969,1726462238650,-500.0,0.00020285,2]
[338265970,1726462238659,-500.0,0.00020285,2]
[338265971,1726462238668,-528.16425252,0.00020285,2]
[338265972,1726462238678,-500.0,0.00020285,2]
[338265973,1726462238688,-500.0,0.00020285,2]
[338265974,1726462238698,-500.0,0.00020285,2]
[338265975,1726462238707,-500.0,0.00020285,2]
[338265976,1726462238717,-500.0,0.00020285,2]
[338265977,1726462238727,-500.0,0.00020285,2]
[338265978,1726462238736,-500.0,0.00020285,2]
[338265979,1726462238746,-500.0,0.00020285,2]
[338265980,1726462238755,-500.0,0.00020285,2]
[338265981,1726462238765,-500.0,0.00020285,2]
[338265982,1726462238774,-500.0,0.00020285,2]
[338265983,1726462238783,-500.0,0.00020285,2]
[338265984,1726462238793,-500.0,0.00020285,2]
[338265985,1726462238802,-500.0,0.00020285,2]
[338265986,1726462238812,-500.0,0.00020285,2]
[338265987,1726462238821,-500.0,0.00020285,2]
[338265988,1726462238831,-500.0,0.00020285,2]
[338265989,1726462238841,-500.0,0.00020285,2]
[338265990,1726462238850,-500.0,0.00020285,2]
[338265991,1726462238860,-500.0,0.00020285,2]
[338265992,1726462238869,-500.0,0.00020285,2]
[338265993,1726462238879,-500.0,0.00020285,2]
[338265994,1726462238889,-500.0,0.00020285,2]
[338265995,1726462238898,-500.0,0.00020285,2]
[338265996,1726462238907,-500.0,0.00020285,2]
[338265997,1726462238917,-500.0,0.00020285,2]
[338265998,1726462238926,-500.0,0.00020285,2]
[338265999,1726462238935,-500.0,0.00020285,2]
[338266000,1726462238944,-500.0,0.00020285,2]
[338266001,1726462238954,-500.0,0.00020285,2]
[338266002,1726462238963,-500.0,0.00020285,2]
[338266003,1726462238972,-500.0,0.00020285,2]
[338266004,1726462238981,-55499.8109658,0.00020287,2]
[338266005,1726462238991,-10150.547042,0.00020825,2]
[338266006,1726462239000,-220.516397,0.00021535,2]
[338266007,1726462239010,-420.0,0.00021777,2]
[338266008,1726462239020,-524.0,0.00021793,2]
[338266009,1726462239029,-164.0,0.00021793,2]
[338266010,1726462239039,-15847.488,0.00021793,2]
[338266011,1726462239048,-150.0,0.000218,2]
[338266012,1726462239058,-197.49962917,0.00021805,2]
[338266013,1726462239067,-187.34767303,0.00021805,2]
[338266014,1726462239078,-151.0,0.00021817,2]
[338266015,1726462239089,-40685.962651,0.00021864,3]
[338266016,1726462239098,-35756.7749789,0.00021864,3]
[338266017,1726462239108,-20426.23340291,0.00021864,5]
[338266018,1726462239117,-151.0,0.00021864,2]
[338266019,1726462239126,-151.0,0.00021864,2]
[338266020,1726462239136,-242.03827679,0.00021875,2]
[338266021,1726462239145,-179.9712737,0.00021875,2]
[338266022,1726462239154,-500.0,0.00021875,2]
[338266023,1726462239164,-517.63293982,0.00021875,2]
[338266024,1726462239173,-169.42679375,0.00021875,2]
[338266025,1726462239182,-151.0,0.00021876,2]
[338266026,1726462239192,-151.0,0.00021876,2]
[338266027,1726462239202,-40685.962651,0.00021876,3]
[338266028,1726462239212,-35756.7749789,0.00021876,3]
[338266029,1726462239221,-151.0,0.00021887,2]
[338266030,1726462239231,-168.033112,0.00021887,2]
[338266031,1726462239241,-151.0,0.00021887,2]
[338266032,1726462239250,-151.0,0.00021887,2]
[338266033,1726462239260,-173.209086,0.00021887,2]
[338266034,1726462239270,-173.209086,0.00021887,2]
[338266035,1726462239279,-173.209086,0.00021887,2]
[338266036,1726462239289,-173.209086,0.00021887,2]
[338266037,1726462239298,-151.0,0.00021887,2]
[338266038,1726462239307,-151.0,0.00021887,2]
[338266039,1726462239317,-231.125015,0.00021887,2]
[338266040,1726462239326,-231.125015,0.00021887,2]
[338266041,1726462239336,-231.125015,0.00021887,2]
[338266042,1726462239346,-231.125015,0.00021887,2]
[338266043,1726462239355,-372.785075,0.00021887,2]
[338266044,1726462239364,-372.785075,0.00021887,2]
[338266045,1726462239374,-372.785075,0.00021887,2]
[338266046,1726462239383,-372.785075,0.00021887,2]
[338266047,1726462239392,-151.0,0.00021887,2]
[338266048,1726462239401,-151.0,0.00021887,2]
[338266049,1726462239411,-151.0,0.00021887,2]
[338266050,1726462239421,-151.0,0.00021887,2]
[338266051,1726462239430,-151.0,0.00021887,2]
[338266052,1726462239439,-151.0,0.00021887,2]
[338266053,1726462239450,-151.0,0.00021887,2]
[338266054,1726462239460,-151.0,0.00021887,2]
[338266055,1726462239469,-161.106735,0.00021887,2]
[338266056,1726462239479,-308.11235,0.00021897,2]
[338266057,1726462239489,-308.11235,0.00021897,2]
[338266058,1726462239499,-308.11235,0.00021897,2]
[338266059,1726462239508,-308.11235,0.00021897,2]
[338266060,1726462239518,-308.11235,0.00021897,2]
[338266061,1726462239528,-308.11235,0.00021897,2]
[338266062,1726462239542,-268.050289,0.00021897,2]
[338266063,1726462239552,-151.0,0.00021897,2]
[338266064,1726462239561,-151.0,0.00021897,2]
[338266065,1726462239571,-151.0,0.00021897,2]
[338266066,1726462239582,-151.0,0.00021897,2]
[338266067,1726462239592,-153.101223,0.00021897,2]
[338266068,1726462239601,-275.942395,0.00021897,2]
[338266069,1726462239612,-275.942395,0.00021897,2]
[338266070,1726462239622,-275.942395,0.00021897,2]
[338266071,1726462239632,-275.942395,0.00021897,2]
[338266072,1726462239642,-275.942395,0.00021897,2]
[338266073,1726462239652,-275.942395,0.00021897,2]
[338266074,1726462239662,-150.112233,0.000219,5]
[338266075,1726462239671,-150.112233,0.000219,3]
[338266076,1726462239681,-150.112233,0.000219,4]
[338266077,1726462239690,-150.112233,0.000219,4]
[338266078,1726462239700,-151.0,0.000219,2]
[338266079,1726462239710,-151.0,0.000219,2]
[338266080,1726462239719,-1196.42843957,0.00021905,2]
[338266081,1726462239729,-151.0,0.00021905,2]
[338266082,1726462239738,-173.209086,0.00021905,2]
[338266083,1726462239748,-173.209086,0.00021905,2]
[338266085,1726462239758,-151.0,0.00021905,2]
[338266086,1726462239768,-231.125015,0.00021905,2]
[338266087,1726462239778,-231.125015,0.00021905,2]
[338266088,1726462239787,-372.785075,0.00021905,2]
[338266089,1726462239797,-372.785075,0.00021905,2]
[338266090,1726462239806,-1794.64265936,0.00021905,2]
[338266091,1726462239816,-595.86508479,0.00021907,5]
[338266092,1726462239826,-186.01304692,0.00021907,7]
[338266093,1726462239835,-99345.63284016,0.00021907,3]
[338266094,1726462239850,-63398.21776384,0.00021907,3]
[338266095,1726462239860,-31252.82537608,0.00021907,3]
[338266096,1726462239872,-1050.82,0.00021907,3]
[338266098,1726462239899,-240.916637,0.00020096,2]
[338266099,1726462239909,-22678.433363,0.00021907,3]
[338266141,1726462240497,-240.916637,0.00020149,2]
[338266143,1726462240507,-240.916637,0.00020202,2]
[338266145,1726462240517,-240.916637,0.00020255,2]
[338266147,1726462240527,-240.916637,0.00020308,2]
[338266149,1726462240540,-123801.79615492,0.00021907,3]
[338266151,1726462240549,-497.40713359,0.00021907,3]
[338266153,1726462240559,-151.0,0.00021907,2]
[338266154,1726462240569,-151.0,0.00021907,2]
[338266155,1726462240579,-151.0,0.00021907,2]
[338266156,1726462240589,-500.0,0.00021917,2]
[338266157,1726462240598,-505.77861822,0.00021917,2]
[338266158,1726462240609,-502.72670718,0.00021917,2]
[338266159,1726462240619,-500.0,0.00021917,2]
[338266160,1726462240629,-500.0,0.00021917,2]
[338266161,1726462240638,-501.36573447,0.00021917,2]
[338266162,1726462240647,-500.0,0.00021917,2]
[338266163,1726462240657,-500.0,0.00021917,2]
[338266164,1726462240667,-500.0,0.00021917,2]
[338266165,1726462240677,-500.0,0.00021917,2]
[338266166,1726462240686,-500.0,0.00021917,2]
[338266167,1726462240696,-500.0,0.00021917,2]
[338266168,1726462240706,-500.0,0.00021917,2]
[338266169,1726462240715,-500.0,0.00021917,2]
[338266170,1726462240725,-518.49650887,0.00021917,2]
[338266171,1726462240734,-500.0,0.00021917,2]
[338266172,1726462240743,-500.0,0.00021917,2]
[338266173,1726462240753,-500.0,0.00021917,2]
[338266174,1726462240763,-1359.85,0.00021917,2]
[338266175,1726462240772,-500.0,0.00021917,2]
[338266176,1726462240782,-500.0,0.00021917,2]
[338266177,1726462240791,-500.0,0.00021917,2]
[338266178,1726462240801,-502.90992663,0.00021917,2]
[338266179,1726462240811,-500.0,0.00021917,2]
[338266180,1726462240821,-500.0,0.00021917,2]
[338266181,1726462240830,-502.63435105,0.00021917,2]
[338266182,1726462240840,-1033.31,0.00021917,2]
[338266183,1726462240849,-506.19130394,0.00021917,2]
[338266184,1726462240859,-500.0,0.00021917,2]
[338266185,1726462240870,-500.0,0.00021917,2]
[338266186,1726462240879,-599.79,0.00021917,2]
[338266187,1726462240888,-685.01,0.00021917,2]
[338266188,1726462240897,-500.0,0.00021917,2]
[338266189,1726462240907,-461.02014264,0.00021917,2]
[338266300,1726462482892,2500.0,0.00012284,2]
[338266301,1726462585214,10000.0,0.00014,2]
[338266305,1726463373218,-165.8620902,0.00019655,2]
[338266321,1726463432468,-180.68748,0.0002048,2]
[338266323,1726463432478,-319.31252,0.0002051,30]
[338266325,1726463432490,-369.27171322,0.0002051,30]
[338266327,1726463432505,-7.29636252,0.0002051,30]
[338266328,1726463432515,-449.86392512,0.0002051,30]
[338266359,1726463438846,-92.06890449,0.0002051,30]
[338266360,1726463438857,-500.0,0.0002051,30]
[338266361,1726463438866,-500.0,0.0002051,30]
[338266362,1726463438875,-300.0,0.00020575,2]
[338266363,1726463438885,-300.0,0.00020575,2]
[338266364,1726463438894,-24900.0,0.00020577,2]
[338266365,1726463438903,-180.68748,0.00020836,2]
[338266366,1726463438912,-198.33149858,0.00020958,2]
[338266367,1726463438922,-49981.72699512,0.00021,5]
[338266368,1726463438930,-180.68748,0.00021192,2]
[338266369,1726463438940,-180.68748,0.00021547,2]
[338266370,1726463438949,-524.0,0.00021794,2]
[338266371,1726463438958,-164.0,0.00021794,2]
[338266372,1726463438967,-269.32,0.00021866,3]
[338266373,1726463438976,-807.99,0.00021866,3]
[338266374,1726463438986,-1077.28,0.00021867,3]
[338266375,1726463438995,-538.64,0.00021867,3]
[338266376,1726463439004,-500.0,0.00021876,2]
[338266377,1726463439013,-212.34305787,0.00021876,2]
[338266378,1726463439023,-500.0,0.00021876,2]
[338266379,1726463439032,-500.0,0.00021876,2]
[338266380,1726463439041,-500.0,0.00021876,2]
[338266381,1726463439050,-500.0,0.00021876,2]
[338266382,1726463439060,-500.0,0.00021876,2]
[338266383,1726463439069,-500.0,0.00021876,2]
[338266384,1726463439078,-500.0,0.00021876,2]
[338266385,1726463439087,-500.0,0.00021876,2]
[338266386,1726463439096,-500.0,0.00021876,2]
[338266387,1726463439107,-500.0,0.00021876,2]
[338266388,1726463439116,-500.0,0.00021876,2]
[338266389,1726463439127,-500.0,0.00021876,2]
[338266390,1726463439136,-500.0,0.00021876,2]
[338266391,1726463439145,-500.0,0.00021876,2]
[338266392,1726463439154,-500.0,0.00021876,2]
[338266393,1726463439163,-500.0,0.00021876,2]
[338266394,1726463439172,-500.0,0.00021876,2]
[338266395,1726463439181,-500.0,0.00021876,2]
[338266396,1726463439190,-500.0,0.00021876,2]
[338266397,1726463439199,-500.0,0.00021876,2]
[338266398,1726463439208,-552.81642526,0.00021876,2]
[338266399,1726463439218,-500.0,0.00021876,2]
[338266400,1726463439227,-500.0,0.00021876,2]
[338266401,1726463439237,-10213.11670145,0.00021876,5]
[338266402,1726463439246,-169366.571641,0.00021877,3]
[338266403,1726463439254,-99684.499291,0.00021877,3]
[338266404,1726463439264,-186.01304692,0.00021887,7]
[338266405,1726463439273,-169366.571641,0.00021887,3]
[338266406,1726463439282,-96670.25899586,0.00021887,3]
[338266407,1726463439294,-1357.31203455,0.00021887,3]
[338266408,1726463439308,-1648.98390653,0.00021887,3]
[338266409,1726463439341,-33236.11078406,0.00021887,3]
[338266410,1726463439351,-151.0,0.00021887,2]
[338266411,1726463439361,-151.0,0.00021887,2]
[338266412,1726463439370,-161.106735,0.00021887,2]
[338266413,1726463439380,-150.112233,0.000219,2]
[338266414,1726463439389,-150.112233,0.000219,3]
[338266415,1726463439398,-150.112233,0.000219,4]
[338266416,1726463439408,-150.112233,0.000219,5]
[338266417,1726463439418,-56811.68178416,0.00021907,3]
[338266423,1726463440482,-9644.65107654,0.00021907,3]
[338266424,1726463440492,-1336.37,0.00021907,3]
[338266425,1726463440502,-1794.64265936,0.00021916,2]
[338266426,1726463440511,-595.86508479,0.00021917,5]